[Event "Meltwater Champions Chess Tour 2022: Chessable Masters | Prelims"]
[White "Mamedyarov, Shakhriyar"]
[Black "Shankland, Sam"]
[WhiteFideId "13401319"]
[BlackFideId "2004887"]
[WhiteElo "2699"]
[BlackElo "2616"]
[Result "1-0"]
[Round "05"]
[TimeControl "900+10"]
[Date "2022.05.20"]
[WhiteClock "0:03:58"]
[BlackClock "0:00:19"]

1. d4 {[%clk 0:15:20]}  d5 {[%clk 0:15:20]} 2. c4 {[%clk 0:15:17]}  c6 {[%clk 0:15:28]} 3. Nf3 {[%clk 0:15:21]}  Nf6 {[%clk 0:15:37]} 4. Nc3 {[%clk 0:15:27]}  e6 {[%clk 0:15:45]} 5. Bg5 {[%clk 0:15:29]}  dxc4 {[%clk 0:15:42]} 6. e4 {[%clk 0:15:24]}  b5 {[%clk 0:15:50]} 7. e5 {[%clk 0:15:34]}  h6 {[%clk 0:15:58]} 8. Bh4 {[%clk 0:15:42]}  g5 {[%clk 0:16:07]} 9. Nxg5 {[%clk 0:15:51]}  hxg5 {[%clk 0:16:16]} 10. Bxg5 {[%clk 0:16:01]}  Nbd7 {[%clk 0:16:13]} 11. exf6 {[%clk 0:15:52]}  Bb7 {[%clk 0:16:20]} 12. Be2 {[%clk 0:15:33]}  Nxf6 {[%clk 0:15:51]} 13. Bf3 {[%clk 0:15:14]}  Be7 {[%clk 0:15:42]} 14. Qe2 {[%clk 0:13:48]}  Qc7 {[%clk 0:14:12]} 15. g3 {[%clk 0:12:21]}  O-O-O {[%clk 0:13:57]} 16. Bf4 {[%clk 0:10:42]}  Bd6 {[%clk 0:12:18]} 17. Bg5 {[%clk 0:10:48]}  Be7 {[%clk 0:12:15]} 18. Rd1 {[%clk 0:09:30]}  Nd5 {[%clk 0:11:13]} 19. Nxd5 {[%clk 0:08:36]}  exd5 {[%clk 0:10:42]} 20. Bxe7 {[%clk 0:08:43]}  Rde8 {[%clk 0:10:51]} 21. O-O {[%clk 0:08:38]}  Qxe7 {[%clk 0:10:27]} 22. Qd2 {[%clk 0:08:30]}  Qf6 {[%clk 0:10:09]} 23. Bg4+ {[%clk 0:07:50]}  Kb8 {[%clk 0:10:07]} 24. Rfe1 {[%clk 0:07:56]}  Reg8 {[%clk 0:06:34]} 25. f3 {[%clk 0:07:25]}  Bc8 {[%clk 0:06:30]} 26. Rf1 {[%clk 0:05:57]}  Qd6 {[%clk 0:06:09]} 27. Bxc8 {[%clk 0:05:55]}  Kxc8 {[%clk 0:06:19]} 28. Rde1 {[%clk 0:05:48]}  Rh3 {[%clk 0:05:45]} 29. Re2 {[%clk 0:05:44]}  Kb7 {[%clk 0:04:54]} 30. Rfe1 {[%clk 0:05:02]}  Kb6 {[%clk 0:04:45]} 31. f4 {[%clk 0:04:35]}  a5 {[%clk 0:04:18]} 32. Re8 {[%clk 0:04:06]}  Rhh8 {[%clk 0:02:51]} 33. Rxg8 {[%clk 0:03:21]}  Rxg8 {[%clk 0:03:01]} 34. Kg2 {[%clk 0:03:30]}  b4 {[%clk 0:02:47]} 35. Re5 {[%clk 0:03:22]}  f6 {[%clk 0:02:15]} 36. Re2 {[%clk 0:03:29]}  Kb5 {[%clk 0:01:49]} 37. f5 {[%clk 0:03:08]}  Qd7 {[%clk 0:00:53]} 38. Re6 {[%clk 0:03:12]}  Re8 {[%clk 0:00:18]} 39. Qe2 {[%clk 0:02:56]}  Rxe6 {[%clk 0:00:24]} 40. fxe6 {[%clk 0:03:06]}  Qe7 {[%clk 0:00:33]} 41. b3 {[%clk 0:03:13]}  a4 {[%clk 0:00:20]} 42. h4 {[%clk 0:03:18]}  axb3 {[%clk 0:00:24]} 43. axb3 {[%clk 0:03:28]}  c5 {[%clk 0:00:31]} 44. bxc4+ {[%clk 0:03:36]}  dxc4 {[%clk 0:00:40]} 45. d5 {[%clk 0:03:45]}  b3 {[%clk 0:00:49]} 46. Kh2 {[%clk 0:03:46]}  Kb4 {[%clk 0:00:48]} 47. d6 {[%clk 0:03:54]}  Qxd6 {[%clk 0:00:54]} 48. e7 {[%clk 0:04:03]}  c3 {[%clk 0:00:40]} 49. e8=Q {[%clk 0:04:08]}  c2 {[%clk 0:00:36]} 50. Q8b5+ {[%clk 0:03:56]}  Kc3 {[%clk 0:00:19]} 51. Qe3+ {[%clk 0:03:58]} 1-0


[Site "http://www.chessbomb.com"]

[Event "Meltwater Champions Chess Tour 2022: Chessable Masters | Prelims"]
[White "Van Foreest, Jorden"]
[Black "Mishra, Abhimanyu"]
[WhiteFideId "1039784"]
[BlackFideId "30920019"]
[WhiteElo "2645"]
[BlackElo "2524"]
[Result "1-0"]
[Round "05"]
[TimeControl "900+10"]
[Date "2022.05.20"]
[WhiteClock "0:05:14"]
[BlackClock "0:00:20"]

1. e4 {[%clk 0:15:20]}  c5 {[%clk 0:15:20]} 2. Nf3 {[%clk 0:15:26]}  d6 {[%clk 0:15:28]} 3. Bc4 {[%clk 0:15:35]}  Nf6 {[%clk 0:15:31]} 4. Nc3 {[%clk 0:15:41]}  e6 {[%clk 0:15:11]} 5. d4 {[%clk 0:15:48]}  cxd4 {[%clk 0:15:18]} 6. Qxd4 {[%clk 0:15:58]}  Nc6 {[%clk 0:14:42]} 7. Qd3 {[%clk 0:16:06]}  Be7 {[%clk 0:13:54]} 8. Bf4 {[%clk 0:16:13]}  O-O {[%clk 0:13:47]} 9. O-O-O {[%clk 0:16:20]}  Ng4 {[%clk 0:11:30]} 10. Qe2 {[%clk 0:15:48]}  Qb6 {[%clk 0:11:10]} 11. Rhf1 {[%clk 0:15:55]}  Nge5 {[%clk 0:11:00]} 12. Bb3 {[%clk 0:14:45]}  Rd8 {[%clk 0:10:03]} 13. Be3 {[%clk 0:14:42]}  Qc7 {[%clk 0:08:50]} 14. Nd2 {[%clk 0:14:03]}  Nd7 {[%clk 0:07:02]} 15. f4 {[%clk 0:12:52]}  Nc5 {[%clk 0:06:30]} 16. f5 {[%clk 0:12:21]}  Bf6 {[%clk 0:04:51]} 17. fxe6 {[%clk 0:12:11]}  fxe6 {[%clk 0:04:39]} 18. Qg4 {[%clk 0:09:47]}  Nxb3+ {[%clk 0:03:37]} 19. Nxb3 {[%clk 0:09:46]}  Bxc3 {[%clk 0:03:25]} 20. bxc3 {[%clk 0:09:54]}  e5 {[%clk 0:03:12]} 21. Qg3 {[%clk 0:09:17]}  Be6 {[%clk 0:03:09]} 22. Bg5 {[%clk 0:08:09]}  Rf8 {[%clk 0:02:34]} 23. Rxf8+ {[%clk 0:08:16]}  Rxf8 {[%clk 0:02:40]} 24. Qd3 {[%clk 0:08:25]}  Rf2 {[%clk 0:02:16]} 25. Qxd6 {[%clk 0:08:01]}  Qxd6 {[%clk 0:02:08]} 26. Rxd6 {[%clk 0:08:12]}  Bxb3 {[%clk 0:01:44]} 27. axb3 {[%clk 0:08:22]}  Rxg2 {[%clk 0:01:51]} 28. h4 {[%clk 0:08:21]}  Rg4 {[%clk 0:01:34]} 29. Rd7 {[%clk 0:08:29]}  h6 {[%clk 0:01:26]} 30. Bd2 {[%clk 0:08:27]}  Rxh4 {[%clk 0:00:36]} 31. Rxb7 {[%clk 0:08:35]}  Kh7 {[%clk 0:00:41]} 32. Rc7 {[%clk 0:07:31]}  Nd8 {[%clk 0:00:48]} 33. Rxa7 {[%clk 0:07:40]}  Rxe4 {[%clk 0:00:55]} 34. b4 {[%clk 0:07:35]}  h5 {[%clk 0:00:47]} 35. Rd7 {[%clk 0:06:39]}  Ne6 {[%clk 0:00:22]} 36. b5 {[%clk 0:06:36]}  h4 {[%clk 0:00:29]} 37. Rd3 {[%clk 0:06:48]}  Nc5 {[%clk 0:00:21]} 38. Rh3 {[%clk 0:06:06]}  Kg6 {[%clk 0:00:23]} 39. Be3 {[%clk 0:06:15]}  Nb7 {[%clk 0:00:23]} 40. Kd2 {[%clk 0:06:12]}  Kf5 {[%clk 0:00:20]} 41. Kd3 {[%clk 0:06:13]}  Rg4 {[%clk 0:00:21]} 42. b6 {[%clk 0:06:02]}  Ke6 {[%clk 0:00:16]} 43. c4 {[%clk 0:06:10]}  g5 {[%clk 0:00:20]} 44. Rh1 {[%clk 0:05:33]}  Rg3 {[%clk 0:00:19]} 45. Ke2 {[%clk 0:05:23]}  h3 {[%clk 0:00:21]} 46. c5 {[%clk 0:04:52]}  Kd5 {[%clk 0:00:23]} 47. c4+ {[%clk 0:05:00]}  Kc6 {[%clk 0:00:18]} 48. Rf1 {[%clk 0:05:08]}  Rg2+ {[%clk 0:00:15]} 49. Ke1 {[%clk 0:04:46]}  Nxc5 {[%clk 0:00:12]} 50. Rf6+ {[%clk 0:04:55]}  Kb7 {[%clk 0:00:21]} 51. Bxc5 {[%clk 0:04:46]}  h2 {[%clk 0:00:13]} 52. Rf7+ {[%clk 0:04:56]}  Kc8 {[%clk 0:00:15]} 53. b7+ {[%clk 0:05:05]}  Kb8 {[%clk 0:00:20]} 54. Bd6+ {[%clk 0:05:14]} 1-0


[Site "http://www.chessbomb.com"]

[Event "Meltwater Champions Chess Tour 2022: Chessable Masters | Prelims"]
[White "Shankland, Sam"]
[Black "Van Foreest, Jorden"]
[WhiteFideId "2004887"]
[BlackFideId "1039784"]
[WhiteElo "2616"]
[BlackElo "2645"]
[Result "0-1"]
[Round "06"]
[TimeControl "900+10"]
[Date "2022.05.20"]
[WhiteClock "0:00:22"]
[BlackClock "0:02:28"]

1. d4 {[%clk 0:15:20]}  d5 {[%clk 0:15:20]} 2. c4 {[%clk 0:15:28]}  dxc4 {[%clk 0:15:29]} 3. e3 {[%clk 0:15:33]}  Nf6 {[%clk 0:15:37]} 4. Bxc4 {[%clk 0:15:40]}  e6 {[%clk 0:15:46]} 5. Nf3 {[%clk 0:15:44]}  c5 {[%clk 0:15:54]} 6. O-O {[%clk 0:15:50]}  a6 {[%clk 0:16:03]} 7. Nbd2 {[%clk 0:15:51]}  Nbd7 {[%clk 0:15:38]} 8. e4 {[%clk 0:15:49]}  b5 {[%clk 0:15:47]} 9. e5 {[%clk 0:16:00]}  bxc4 {[%clk 0:15:52]} 10. exf6 {[%clk 0:16:07]}  gxf6 {[%clk 0:14:56]} 11. Nxc4 {[%clk 0:15:14]}  Bb7 {[%clk 0:14:59]} 12. Bf4 {[%clk 0:14:25]}  Rg8 {[%clk 0:14:41]} 13. Bg3 {[%clk 0:14:01]}  Be7 {[%clk 0:14:19]} 14. Re1 {[%clk 0:12:50]}  Kf8 {[%clk 0:12:59]} 15. Rc1 {[%clk 0:12:30]}  Rg4 {[%clk 0:12:04]} 16. Nd6 {[%clk 0:10:35]}  Bd5 {[%clk 0:10:43]} 17. dxc5 {[%clk 0:09:31]}  Nxc5 {[%clk 0:10:50]} 18. Rxc5 {[%clk 0:07:35]}  Bxd6 {[%clk 0:10:57]} 19. Rc2 {[%clk 0:06:53]}  Bb4 {[%clk 0:10:33]} 20. Nd2 {[%clk 0:06:20]}  Rd4 {[%clk 0:09:52]} 21. Qh5 {[%clk 0:06:08]}  Kg7 {[%clk 0:09:14]} 22. Rc7 {[%clk 0:05:15]}  e5 {[%clk 0:08:50]} 23. Rxe5 {[%clk 0:04:35]}  Bxd2 {[%clk 0:07:05]} 24. Ree7 {[%clk 0:04:08]}  Qg8 {[%clk 0:03:05]} 25. h3 {[%clk 0:02:05]}  Re8 {[%clk 0:03:03]} 26. Red7 {[%clk 0:02:06]}  Rd8 {[%clk 0:02:56]} 27. Be5 {[%clk 0:01:12]}  Re4 {[%clk 0:01:59]} 28. Bxf6+ {[%clk 0:00:22]}  Kxf6 {[%clk 0:02:09]} 29. Qxd5 {[%clk 0:00:26]}  Re1+ {[%clk 0:02:18]} 30. Kh2 {[%clk 0:00:35]}  Bf4+ {[%clk 0:02:25]} 31. g3 {[%clk 0:00:45]}  Bxc7 {[%clk 0:02:21]} 32. Qc6+ {[%clk 0:00:19]}  Re6 {[%clk 0:02:13]} 33. Qf3+ {[%clk 0:00:18]}  Kg7 {[%clk 0:02:22]} 34. Rxc7 {[%clk 0:00:27]}  Qe8 {[%clk 0:02:22]} 35. h4 {[%clk 0:00:30]}  h6 {[%clk 0:02:16]} 36. h5 {[%clk 0:00:36]}  Re5 {[%clk 0:02:05]} 37. Qc3 {[%clk 0:00:32]}  Kg8 {[%clk 0:02:13]} 38. Qf3 {[%clk 0:00:35]}  Qe6 {[%clk 0:02:21]} 39. Rc6 {[%clk 0:00:22]}  Qf5 {[%clk 0:02:28]} 0-1


[Site "http://www.chessbomb.com"]

[Event "Meltwater Champions Chess Tour 2022: Chessable Masters | Prelims"]
[White "Vidit, Santosh Gujrathi"]
[Black "Mamedyarov, Shakhriyar"]
[WhiteFideId "5029465"]
[BlackFideId "13401319"]
[WhiteElo "2617"]
[BlackElo "2699"]
[Result "1/2-1/2"]
[Round "06"]
[TimeControl "900+10"]
[Date "2022.05.20"]
[WhiteClock "0:01:05"]
[BlackClock "0:02:00"]

1. e4 {[%clk 0:15:20]}  e5 {[%clk 0:15:20]} 2. Nf3 {[%clk 0:15:29]}  Nc6 {[%clk 0:15:29]} 3. Bc4 {[%clk 0:15:38]}  Bc5 {[%clk 0:15:37]} 4. O-O {[%clk 0:15:45]}  Nf6 {[%clk 0:15:46]} 5. d3 {[%clk 0:15:55]}  O-O {[%clk 0:15:55]} 6. h3 {[%clk 0:16:02]}  d5 {[%clk 0:15:58]} 7. exd5 {[%clk 0:16:11]}  Nxd5 {[%clk 0:16:08]} 8. Nbd2 {[%clk 0:16:00]}  a5 {[%clk 0:16:12]} 9. Ne4 {[%clk 0:15:58]}  Ba7 {[%clk 0:15:24]} 10. a4 {[%clk 0:15:42]}  f6 {[%clk 0:15:05]} 11. Be3 {[%clk 0:14:43]}  Kh8 {[%clk 0:14:48]} 12. Bxa7 {[%clk 0:14:49]}  Rxa7 {[%clk 0:14:58]} 13. Re1 {[%clk 0:13:15]}  Ra8 {[%clk 0:14:49]} 14. Qd2 {[%clk 0:12:19]}  Bf5 {[%clk 0:11:17]} 15. c3 {[%clk 0:10:41]}  Nb6 {[%clk 0:08:29]} 16. Bb3 {[%clk 0:10:45]}  Qc8 {[%clk 0:08:31]} 17. d4 {[%clk 0:08:12]}  Rd8 {[%clk 0:08:33]} 18. Rad1 {[%clk 0:06:26]}  exd4 {[%clk 0:07:25]} 19. cxd4 {[%clk 0:06:31]}  Nd5 {[%clk 0:06:51]} 20. Bxd5 {[%clk 0:05:58]}  Rxd5 {[%clk 0:07:01]} 21. Nc3 {[%clk 0:06:05]}  Rd7 {[%clk 0:05:37]} 22. d5 {[%clk 0:05:52]}  Nb4 {[%clk 0:05:42]} 23. Nd4 {[%clk 0:05:41]}  Bg6 {[%clk 0:05:46]} 24. Ne6 {[%clk 0:05:40]}  Rd6 {[%clk 0:03:53]} 25. Qf4 {[%clk 0:03:53]}  Raa6 {[%clk 0:02:33]} 26. Nb5 {[%clk 0:02:31]}  Rxd5 {[%clk 0:02:36]} 27. Nbxc7 {[%clk 0:01:23]}  Rxd1 {[%clk 0:00:52]} 28. Rxd1 {[%clk 0:01:30]}  Nd3 {[%clk 0:01:02]} 29. Qg4 {[%clk 0:00:25]}  Rd6 {[%clk 0:00:46]} 30. f4 {[%clk 0:00:19]}  Qd7 {[%clk 0:00:26]} 31. f5 {[%clk 0:00:21]}  Ne5 {[%clk 0:00:16]} 32. Rxd6 {[%clk 0:00:30]}  Qxd6 {[%clk 0:00:26]} 33. Qg3 {[%clk 0:00:37]}  Qd1+ {[%clk 0:00:29]} 34. Kh2 {[%clk 0:00:46]}  Qxa4 {[%clk 0:00:39]} 35. fxg6 {[%clk 0:00:50]}  hxg6 {[%clk 0:00:49]} 36. Qa3 {[%clk 0:00:16]}  Qxa3 {[%clk 0:00:22]} 37. bxa3 {[%clk 0:00:27]}  Nc4 {[%clk 0:00:30]} 38. Nb5 {[%clk 0:00:29]}  Kg8 {[%clk 0:00:39]} 39. Kg3 {[%clk 0:00:34]}  b6 {[%clk 0:00:46]} 40. Kf4 {[%clk 0:00:36]}  Kf7 {[%clk 0:00:55]} 41. Nec7 {[%clk 0:00:23]}  Ke7 {[%clk 0:01:01]} 42. Ke4 {[%clk 0:00:30]}  Kd7 {[%clk 0:01:10]} 43. Kd4 {[%clk 0:00:32]}  Nxa3 {[%clk 0:01:16]} 44. Nxa3 {[%clk 0:00:33]}  Kxc7 {[%clk 0:01:25]} 45. Kd5 {[%clk 0:00:38]}  g5 {[%clk 0:01:26]} 46. Nc4 {[%clk 0:00:33]}  a4 {[%clk 0:01:28]} 47. Na3 {[%clk 0:00:39]}  Kd7 {[%clk 0:01:32]} 48. Nb5 {[%clk 0:00:44]}  g6 {[%clk 0:00:59]} 49. Na3 {[%clk 0:00:27]}  Ke7 {[%clk 0:01:07]} 50. Nb5 {[%clk 0:00:25]}  Kd7 {[%clk 0:01:17]} 51. Na3 {[%clk 0:00:20]}  Ke7 {[%clk 0:01:26]} 52. Nc2 {[%clk 0:00:21]}  b5 {[%clk 0:01:09]} 53. Kc5 {[%clk 0:00:20]}  Ke6 {[%clk 0:01:17]} 54. Kxb5 {[%clk 0:00:26]}  Ke5 {[%clk 0:01:25]} 55. Kxa4 {[%clk 0:00:33]}  Kf4 {[%clk 0:01:34]} 56. g4 {[%clk 0:00:17]}  Kg3 {[%clk 0:01:42]} 57. Kb3 {[%clk 0:00:26]}  f5 {[%clk 0:01:22]} 58. gxf5 {[%clk 0:00:27]}  gxf5 {[%clk 0:01:32]} 59. Nd4 {[%clk 0:00:33]}  f4 {[%clk 0:01:39]} 60. Ne6 {[%clk 0:00:37]}  f3 {[%clk 0:01:42]} 61. Nxg5 {[%clk 0:00:46]}  f2 {[%clk 0:01:50]} 62. Ne4+ {[%clk 0:00:55]}  Kxh3 {[%clk 0:02:00]} 63. Nxf2+ {[%clk 0:01:05]} 1/2-1/2


[Site "http://www.chessbomb.com"]

[Event "Meltwater Champions Chess Tour 2022: Chessable Masters | Prelims"]
[White "Wei, Yi"]
[Black "Hansen, Eric"]
[WhiteFideId "8603405"]
[BlackFideId "2606771"]
[WhiteElo "2752"]
[BlackElo "2579"]
[Result "1-0"]
[Round "06"]
[TimeControl "900+10"]
[Date "2022.05.20"]
[WhiteClock "0:07:11"]
[BlackClock "0:00:34"]

1. c4 {[%clk 0:15:20]}  Nf6 {[%clk 0:15:20]} 2. Nc3 {[%clk 0:15:28]}  d5 {[%clk 0:15:29]} 3. cxd5 {[%clk 0:15:34]}  Nxd5 {[%clk 0:15:39]} 4. g3 {[%clk 0:15:44]}  g6 {[%clk 0:13:37]} 5. Bg2 {[%clk 0:15:51]}  Nxc3 {[%clk 0:13:47]} 6. bxc3 {[%clk 0:16:00]}  Bg7 {[%clk 0:13:55]} 7. h4 {[%clk 0:16:06]}  Nc6 {[%clk 0:14:01]} 8. h5 {[%clk 0:16:12]}  Qd7 {[%clk 0:14:00]} 9. Nf3 {[%clk 0:15:03]}  b6 {[%clk 0:13:55]} 10. d4 {[%clk 0:10:52]}  Bb7 {[%clk 0:13:58]} 11. e4 {[%clk 0:10:42]}  O-O-O {[%clk 0:10:37]} 12. Be3 {[%clk 0:10:51]}  e6 {[%clk 0:08:52]} 13. h6 {[%clk 0:10:57]}  Bf6 {[%clk 0:09:00]} 14. O-O {[%clk 0:11:06]}  Na5 {[%clk 0:08:42]} 15. Nd2 {[%clk 0:10:52]}  e5 {[%clk 0:07:29]} 16. d5 {[%clk 0:09:42]}  Kb8 {[%clk 0:07:03]} 17. c4 {[%clk 0:08:45]}  c5 {[%clk 0:05:35]} 18. Rb1 {[%clk 0:07:21]}  Qe7 {[%clk 0:05:31]} 19. Rb5 {[%clk 0:06:56]}  Rc8 {[%clk 0:00:35]} 20. Qa4 {[%clk 0:07:05]}  Ka8 {[%clk 0:00:17]} 21. Rfb1 {[%clk 0:07:13]}  Qd6 {[%clk 0:00:12]} 22. Bh3 {[%clk 0:06:07]}  Rc7 {[%clk 0:00:11]} 23. Nb3 {[%clk 0:06:16]}  Nxb3 {[%clk 0:00:20]} 24. axb3 {[%clk 0:06:25]}  Kb8 {[%clk 0:00:15]} 25. b4 {[%clk 0:06:34]}  a6 {[%clk 0:00:17]} 26. bxc5 {[%clk 0:06:40]}  axb5 {[%clk 0:00:26]} 27. cxd6 {[%clk 0:06:49]}  bxa4 {[%clk 0:00:34]} 28. dxc7+ {[%clk 0:06:58]}  Kxc7 {[%clk 0:00:44]} 29. Bxb6+ {[%clk 0:07:07]}  Kb8 {[%clk 0:00:32]} 30. c5 {[%clk 0:07:13]}  Ka8 {[%clk 0:00:34]} 31. Ra1 {[%clk 0:07:11]} 1-0


[Site "http://www.chessbomb.com"]

[Event "Meltwater Champions Chess Tour 2022: Chessable Masters | Prelims"]
[White "Giri, Anish"]
[Black "Ding, Liren"]
[WhiteFideId "24116068"]
[BlackFideId "8603677"]
[WhiteElo "2730"]
[BlackElo "2836"]
[Result "1/2-1/2"]
[Round "06"]
[TimeControl "900+10"]
[Date "2022.05.20"]
[WhiteClock "0:02:48"]
[BlackClock "0:09:45"]

1. d4 {[%clk 0:15:20]}  Nf6 {[%clk 0:15:20]} 2. c4 {[%clk 0:15:29]}  e6 {[%clk 0:15:29]} 3. Nc3 {[%clk 0:15:38]}  d5 {[%clk 0:15:13]} 4. cxd5 {[%clk 0:15:46]}  exd5 {[%clk 0:15:23]} 5. Bg5 {[%clk 0:15:50]}  c6 {[%clk 0:15:32]} 6. e3 {[%clk 0:15:59]}  h6 {[%clk 0:15:41]} 7. Bh4 {[%clk 0:16:08]}  Be7 {[%clk 0:15:51]} 8. Bd3 {[%clk 0:16:09]}  O-O {[%clk 0:16:00]} 9. Qc2 {[%clk 0:16:06]}  Re8 {[%clk 0:16:05]} 10. Nge2 {[%clk 0:15:55]}  Nbd7 {[%clk 0:15:54]} 11. O-O {[%clk 0:15:54]}  a5 {[%clk 0:15:50]} 12. a3 {[%clk 0:15:20]}  Nh5 {[%clk 0:15:10]} 13. Bxe7 {[%clk 0:15:28]}  Qxe7 {[%clk 0:15:20]} 14. Rae1 {[%clk 0:15:26]}  Nf8 {[%clk 0:15:22]} 15. Nc1 {[%clk 0:15:02]}  Nf6 {[%clk 0:15:01]} 16. f3 {[%clk 0:14:00]}  Ne6 {[%clk 0:14:28]} 17. Qf2 {[%clk 0:14:03]}  c5 {[%clk 0:14:25]} 18. Bb5 {[%clk 0:12:40]}  Rd8 {[%clk 0:14:26]} 19. dxc5 {[%clk 0:12:23]}  Qxc5 {[%clk 0:14:23]} 20. Nb3 {[%clk 0:12:26]}  Qb6 {[%clk 0:14:31]} 21. Rd1 {[%clk 0:11:59]}  Bd7 {[%clk 0:14:26]} 22. Bxd7 {[%clk 0:11:49]}  Rxd7 {[%clk 0:14:36]} 23. Nd4 {[%clk 0:11:56]}  Re8 {[%clk 0:14:45]} 24. Ncb5 {[%clk 0:08:29]}  Rde7 {[%clk 0:12:51]} 25. Rfe1 {[%clk 0:08:21]}  g6 {[%clk 0:11:08]} 26. Nxe6 {[%clk 0:05:56]}  Rxe6 {[%clk 0:11:03]} 27. Nd4 {[%clk 0:06:02]}  R6e7 {[%clk 0:11:13]} 28. Qd2 {[%clk 0:04:42]}  Nd7 {[%clk 0:11:03]} 29. Re2 {[%clk 0:04:22]}  Ne5 {[%clk 0:11:04]} 30. b3 {[%clk 0:04:14]}  Nc6 {[%clk 0:11:01]} 31. Qc3 {[%clk 0:04:17]}  h5 {[%clk 0:10:08]} 32. Kf2 {[%clk 0:03:11]}  Re5 {[%clk 0:09:44]} 33. Nxc6 {[%clk 0:02:45]}  bxc6 {[%clk 0:09:47]} 34. b4 {[%clk 0:02:54]}  axb4 {[%clk 0:09:55]} 35. axb4 {[%clk 0:03:04]}  R5e6 {[%clk 0:09:54]} 36. Qd4 {[%clk 0:03:07]}  Rb8 {[%clk 0:09:51]} 37. Qxb6 {[%clk 0:03:10]}  Rxb6 {[%clk 0:10:01]} 38. Rd4 {[%clk 0:03:18]}  Re8 {[%clk 0:10:07]} 39. e4 {[%clk 0:03:25]}  Reb8 {[%clk 0:09:35]} 40. exd5 {[%clk 0:02:48]}  cxd5 {[%clk 0:09:45]} 1/2-1/2


[Site "http://www.chessbomb.com"]

[Event "Meltwater Champions Chess Tour 2022: Chessable Masters | Prelims"]
[White "Tari, Aryan"]
[Black "Anton Guijarro, David"]
[WhiteFideId "1510045"]
[BlackFideId "2285525"]
[WhiteElo "2531"]
[BlackElo "2633"]
[Result "0-1"]
[Round "06"]
[TimeControl "900+10"]
[Date "2022.05.20"]
[WhiteClock "0:01:06"]
[BlackClock "0:01:06"]

1. e4 {[%clk 0:15:20]}  e5 {[%clk 0:15:20]} 2. Nf3 {[%clk 0:15:28]}  Nc6 {[%clk 0:15:28]} 3. Bc4 {[%clk 0:15:38]}  Bc5 {[%clk 0:15:34]} 4. c3 {[%clk 0:15:46]}  Nf6 {[%clk 0:15:42]} 5. d4 {[%clk 0:15:54]}  exd4 {[%clk 0:15:48]} 6. cxd4 {[%clk 0:16:05]}  Bb4+ {[%clk 0:15:54]} 7. Nbd2 {[%clk 0:16:01]}  Bxd2+ {[%clk 0:15:56]} 8. Bxd2 {[%clk 0:15:39]}  Nxe4 {[%clk 0:15:38]} 9. d5 {[%clk 0:15:46]}  Ne7 {[%clk 0:15:39]} 10. Bf4 {[%clk 0:11:22]}  d6 {[%clk 0:10:50]} 11. Qd4 {[%clk 0:10:04]}  Nf6 {[%clk 0:10:55]} 12. Bg5 {[%clk 0:07:43]}  Nf5 {[%clk 0:10:15]} 13. Qf4 {[%clk 0:06:36]}  h6 {[%clk 0:09:29]} 14. Bb5+ {[%clk 0:05:33]}  Kf8 {[%clk 0:09:02]} 15. Bxf6 {[%clk 0:05:39]}  Qxf6 {[%clk 0:09:09]} 16. O-O {[%clk 0:05:18]}  g5 {[%clk 0:09:08]} 17. Qa4 {[%clk 0:03:53]}  Ne7 {[%clk 0:05:21]} 18. Rad1 {[%clk 0:02:40]}  Kg7 {[%clk 0:04:50]} 19. Bd7 {[%clk 0:02:49]}  a6 {[%clk 0:03:36]} 20. Rfe1 {[%clk 0:02:25]}  Rd8 {[%clk 0:03:19]} 21. Bxc8 {[%clk 0:02:24]}  Raxc8 {[%clk 0:03:28]} 22. h4 {[%clk 0:02:14]}  c5 {[%clk 0:01:03]} 23. hxg5 {[%clk 0:01:46]}  hxg5 {[%clk 0:01:12]} 24. Qg4 {[%clk 0:01:44]}  Ng6 {[%clk 0:00:59]} 25. Re4 {[%clk 0:00:58]}  Re8 {[%clk 0:00:47]} 26. Nxg5 {[%clk 0:01:00]}  Rcd8 {[%clk 0:00:33]} 27. Rde1 {[%clk 0:00:24]}  Rxe4 {[%clk 0:00:39]} 28. Nxe4 {[%clk 0:00:34]}  Qf4 {[%clk 0:00:43]} 29. Qxf4 {[%clk 0:00:18]}  Nxf4 {[%clk 0:00:53]} 30. g3 {[%clk 0:00:27]}  Nxd5 {[%clk 0:00:54]} 31. Rd1 {[%clk 0:00:36]}  Nb4 {[%clk 0:00:57]} 32. Rxd6 {[%clk 0:00:20]}  Rxd6 {[%clk 0:01:02]} 33. Nxd6 {[%clk 0:00:30]}  b5 {[%clk 0:00:53]} 34. Nb7 {[%clk 0:00:19]}  Nd3 {[%clk 0:00:45]} 35. b3 {[%clk 0:00:13]}  c4 {[%clk 0:00:38]} 36. bxc4 {[%clk 0:00:23]}  bxc4 {[%clk 0:00:47]} 37. Nd6 {[%clk 0:00:19]}  c3 {[%clk 0:00:54]} 38. Nf5+ {[%clk 0:00:28]}  Kf6 {[%clk 0:00:57]} 39. Nd4 {[%clk 0:00:33]}  Nb4 {[%clk 0:00:40]} 40. a3 {[%clk 0:00:13]}  c2 {[%clk 0:00:45]} 41. Nb3 {[%clk 0:00:22]}  Nd3 {[%clk 0:00:49]} 42. Kg2 {[%clk 0:00:31]}  Ke5 {[%clk 0:00:43]} 43. Kf3 {[%clk 0:00:40]}  c1=Q {[%clk 0:00:42]} 44. Nxc1 {[%clk 0:00:49]}  Nxc1 {[%clk 0:00:52]} 45. Ke3 {[%clk 0:00:59]}  Nb3 {[%clk 0:00:55]} 46. f4+ {[%clk 0:01:03]}  Kf5 {[%clk 0:00:59]} 47. Kf3 {[%clk 0:01:06]}  Nd4+ {[%clk 0:01:06]} 0-1


[Site "http://www.chessbomb.com"]

[Event "Meltwater Champions Chess Tour 2022: Chessable Masters | Prelims"]
[White "Grandelius, Nils"]
[Black "Jones, Gawain C B"]
[WhiteFideId "1710400"]
[BlackFideId "409561"]
[WhiteElo "2652"]
[BlackElo "2630"]
[Result "1-0"]
[Round "06"]
[TimeControl "900+10"]
[Date "2022.05.20"]
[WhiteClock "0:01:07"]
[BlackClock "0:00:17"]

1. e4 {[%clk 0:15:20]}  e5 {[%clk 0:15:20]} 2. Nf3 {[%clk 0:15:28]}  Nc6 {[%clk 0:15:28]} 3. Bb5 {[%clk 0:15:38]}  a6 {[%clk 0:15:38]} 4. Ba4 {[%clk 0:15:45]}  Nf6 {[%clk 0:15:45]} 5. d3 {[%clk 0:15:17]}  b5 {[%clk 0:15:50]} 6. Bb3 {[%clk 0:15:26]}  Bc5 {[%clk 0:15:59]} 7. a4 {[%clk 0:15:18]}  Rb8 {[%clk 0:16:04]} 8. Bg5 {[%clk 0:15:07]}  h6 {[%clk 0:15:53]} 9. Bh4 {[%clk 0:15:16]}  d6 {[%clk 0:15:34]} 10. c3 {[%clk 0:15:16]}  Bb6 {[%clk 0:13:12]} 11. O-O {[%clk 0:14:05]}  g5 {[%clk 0:12:19]} 12. Bg3 {[%clk 0:14:13]}  O-O {[%clk 0:12:16]} 13. Re1 {[%clk 0:13:32]}  Kg7 {[%clk 0:08:32]} 14. Nbd2 {[%clk 0:12:06]}  Nh7 {[%clk 0:07:14]} 15. Nf1 {[%clk 0:09:53]}  h5 {[%clk 0:07:16]} 16. h4 {[%clk 0:10:02]}  g4 {[%clk 0:07:05]} 17. N3d2 {[%clk 0:10:10]}  Ne7 {[%clk 0:06:18]} 18. Ne3 {[%clk 0:05:58]}  Bxe3 {[%clk 0:05:46]} 19. Rxe3 {[%clk 0:06:07]}  f5 {[%clk 0:05:44]} 20. exf5 {[%clk 0:06:17]}  Nxf5 {[%clk 0:05:51]} 21. Re1 {[%clk 0:06:27]}  Nxh4 {[%clk 0:05:18]} 22. d4 {[%clk 0:06:07]}  exd4 {[%clk 0:03:01]} 23. Ne4 {[%clk 0:05:31]}  Nf5 {[%clk 0:03:09]} 24. cxd4 {[%clk 0:05:38]}  bxa4 {[%clk 0:01:41]} 25. Rxa4 {[%clk 0:05:39]}  Ng5 {[%clk 0:01:34]} 26. Bf4 {[%clk 0:05:18]}  Nxe4 {[%clk 0:01:26]} 27. Rxe4 {[%clk 0:05:28]}  Bd7 {[%clk 0:01:07]} 28. Rxa6 {[%clk 0:05:09]}  Re8 {[%clk 0:01:06]} 29. Rxe8 {[%clk 0:04:23]}  Qxe8 {[%clk 0:01:15]} 30. Ra7 {[%clk 0:04:16]}  Qe4 {[%clk 0:00:28]} 31. Rxc7 {[%clk 0:03:39]}  Qxf4 {[%clk 0:00:36]} 32. Rxd7+ {[%clk 0:03:49]}  Kh6 {[%clk 0:00:21]} 33. Qe1 {[%clk 0:01:13]}  Kg5 {[%clk 0:00:17]} 34. g3 {[%clk 0:01:10]}  Qxd4 {[%clk 0:00:12]} 35. Bc2 {[%clk 0:00:59]}  Qf6 {[%clk 0:00:11]} 36. Qd2+ {[%clk 0:01:02]}  Kg6 {[%clk 0:00:17]} 37. Rxd6 {[%clk 0:01:07]} 1-0


[Site "http://www.chessbomb.com"]